bitfinex/quotes_SOLUSD_20241031
["timestamp","ask_amount","ask_price","bid_price","bid_amount"]
[1730397893641,19.79782383,169.72,169.66,13.90552383]
[1730397893827,19.79782383,169.72,169.67,13.90552383]
[1730397894428,19.79782383,169.72,169.63,0.12549]
[1730397894429,13.90552383,169.69,169.63,19.80062383]
[1730397894627,13.90552383,169.69,169.63,13.90552383]
[1730397895145,13.90552383,169.68,169.63,13.90552383]
[1730397895349,13.90552383,169.69,169.64,13.90552383]
[1730397895647,13.90552383,169.7,169.64,13.90552383]
[1730397895832,19.79852383,169.69,169.63,19.80062383]
[1730397897939,5.893,169.69,169.64,13.90552383]
[1730397898138,19.79852383,169.69,169.63,37.68240783]
[1730397898324,19.79852383,169.69,169.63,13.90552383]
[1730397898527,13.90552383,169.68,169.62,28.64352383]
[1730397898723,13.90552383,169.68,169.63,23.776884]
[1730397898923,5.8937,169.67,169.63,23.776884]
[1730397900349,13.90552383,169.66,169.6,20.04222383]
[1730397900545,13.90552383,169.66,169.6,13.90552383]
[1730397900858,13.90552383,169.7,169.64,13.90552383]
[1730397901037,5.893,169.69,169.64,13.90552383]
[1730397902139,13.90552383,169.68,169.63,13.90552383]
[1730397902343,13.90552383,169.68,169.63,23.776884]
[1730397902654,13.90552383,169.68,169.62,37.68240783]
[1730397903153,13.90552383,169.67,169.61,34.54012383]
[1730397903926,13.90552383,169.66,169.61,34.54012383]
[1730397904234,13.90552383,169.65,169.61,14.7388]
[1730397904442,19.79972383,169.66,169.61,34.54012383]
[1730397904648,13.90552383,169.65,169.59,13.90552383]
[1730397904858,13.90552383,169.65,169.59,19.80182383]
[1730397905164,5.8924,169.71,169.6,0.12549]
[1730397905332,15.8404,169.72,169.68,13.90552383]
[1730397905536,5.8913,169.74,169.65,0.12549]
[1730397905740,13.90552383,169.73,169.67,13.90552383]
[1730397906133,13.90552383,169.73,169.65,0.12549]
[1730397906134,5.8913,169.74,169.7,13.90552383]
[1730397906333,14.92511345,169.79,169.73,13.90552383]
[1730397906535,5.8899,169.79,169.74,13.90552383]
[1730397907641,19.79542383,169.79,169.73,13.90552383]
[1730397907843,16.3864,169.8,169.75,13.90552383]
[1730397908044,30.29192383,169.8,169.74,13.90552383]
[1730397908344,13.90552383,169.79,169.73,37.68240783]
[1730397908655,13.90552383,169.76,169.71,37.68240783]
[1730397908863,13.90552383,169.76,169.71,13.90552383]
[1730397909152,13.90552383,169.77,169.72,13.90552383]
[1730397909348,36.9989,169.8,169.72,13.90552383]
[1730397909349,13.90552383,169.78,169.72,13.90552383]
[1730397909550,13.90552383,169.75,169.7,13.90552383]
[1730397909851,13.90552383,169.74,169.68,28.63872383]
[1730397910151,13.90552383,169.75,169.69,13.90552383]
[1730397910361,13.90552383,169.74,169.68,13.90552383]
[1730397911751,13.90552383,169.72,169.66,28.64082383]
[1730397912637,13.90552383,169.73,169.67,13.90552383]
[1730397913357,13.90552383,169.75,169.69,13.90552383]
[1730397913752,5.8913,169.74,169.69,13.90552383]
[1730397913964,19.79682383,169.74,169.68,13.90552383]
[1730397915767,13.90552383,169.73,169.67,43.57590783]
[1730397916139,13.90552383,169.74,169.68,13.90552383]
[1730397916335,13.90552383,169.76,169.7,13.90552383]
[1730397916539,13.90552383,169.77,169.71,13.90552383]
[1730397916844,19.79542383,169.78,169.72,13.90552383]
[1730397917045,5.8897,169.79,169.75,13.90552383]
[1730397917351,13.90552383,169.78,169.72,13.90552383]
[1730397917865,13.90552383,169.74,169.68,13.90552383]
[1730397918362,13.90552383,169.73,169.67,13.90552383]
[1730397918763,13.90552383,169.74,169.68,13.90552383]
[1730397919264,19.79582383,169.77,169.71,13.90552383]
[1730397919447,13.90552383,169.78,169.72,13.90552383]
[1730397919643,19.79512383,169.79,169.73,13.90552383]
[1730397920387,19.79512383,169.79,169.73,34.52622383]
[1730397920564,13.90552383,169.81,169.75,13.90552383]
[1730397920768,13.90552383,169.83,169.77,13.90552383]
[1730397920969,5.8882,169.83,169.78,13.90552383]
[1730397921181,25.52470974,169.85,169.79,13.90552383]
[1730397921388,5.8879,169.84,169.8,13.90552383]
[1730397921882,5.8879,169.84,169.79,13.90552383]
[1730397922468,13.90552383,169.83,169.77,13.90552383]
[1730397922667,19.79342383,169.84,169.78,37.68240783]
[1730397922891,5.8879,169.84,169.8,13.90552383]
[1730397923077,16.48761376,169.85,169.82,13.90552383]
[1730397923668,16.48761376,169.85,169.81,13.90552383]
[1730397923868,30.39313759,169.85,169.8,13.90552383]
[1730397924493,16.48761376,169.85,169.8,45.9869293]
[1730397924688,38.69765906,169.85,169.79,22.2100453]
[1730397924991,22.2100453,169.83,169.78,22.2100453]
[1730397925181,22.2100453,169.83,169.77,22.2100453]
[1730397925374,22.2100453,169.83,169.78,22.2100453]
[1730397925583,22.2100453,169.84,169.78,22.2100453]
[1730397925894,22.2100453,169.83,169.77,45.9869293]
[1730397926098,22.2100453,169.83,169.77,22.2100453]
[1730397926972,22.2100453,169.82,169.76,22.2100453]
[1730397927376,5.8889,169.81,169.76,22.2100453]
[1730397927672,5.8889,169.81,169.77,22.2100453]
[1730397927879,5.888,169.84,169.8,22.2100453]
[1730397928085,10.59991376,169.85,169.83,22.2100453]
[1730397928393,16.48741376,169.85,169.82,22.2100453]
[1730397928590,16.48741376,169.85,169.81,22.2100453]
[1730397929999,5.8847,169.93,169.86,0.12549]
[1730397930185,5.8847,169.93,169.89,22.2100453]
[1730397930895,6.2118304,169.94,169.9,23.776884]
[1730397931680,28.4218757,169.94,169.89,23.776884]
[1730397932576,28.4218757,169.94,169.88,28.0963453]
[1730397932577,22.2100453,169.93,169.88,23.776884]
[1730397933075,28.4218757,169.94,169.88,45.9869293]
[1730397933288,0.3274304,169.94,169.9,22.2100453]
[1730397933489,0.3274304,169.94,169.91,22.2100453]
[1730397933689,0.3274304,169.94,169.93,22.2100453]
[1730397933974,0.3274304,169.94,169.92,22.2100453]
[1730397935276,0.3274304,169.94,169.91,5.8854]
[1730397935277,0.3274304,169.94,169.91,23.776884]
[1730397935881,6.2118304,169.94,169.9,22.2100453]
[1730397936092,6.2118304,169.94,169.9,23.776884]
[1730397936413,28.4218757,169.94,169.89,23.902374]
[1730397936579,6.2118304,169.94,169.89,46.1124193]
[1730397937487,6.2118304,169.94,169.89,51.9985193]
[1730397938292,6.2118304,169.94,169.9,22.2100453]
[1730397938491,0.3274304,169.94,169.93,22.2100453]
[1730397938806,0.3274304,169.94,169.93,45.9869293]
[1730397940402,6.2118304,169.94,169.91,23.776884]
[1730397940611,0.3274304,169.94,169.91,45.9869293]
[1730397941183,22.2100453,169.92,169.86,22.2100453]
[1730397941405,22.2100453,169.9,169.84,22.2100453]
[1730397942004,22.2100453,169.9,169.85,0.12549]
[1730397942210,22.2100453,169.9,169.84,22.2100453]
[1730397942380,22.2100453,169.9,169.85,0.12549]
[1730397942586,28.0961453,169.89,169.83,28.0979453]
[1730397942781,22.2100453,169.88,169.82,48.8949453]
[1730397942992,28.0961453,169.89,169.84,0.12549]
[1730397943605,28.0961453,169.89,169.83,22.2100453]
[1730397943792,22.2100453,169.87,169.82,22.2100453]
[1730397944103,22.2100453,169.88,169.83,22.2100453]
[1730397944306,28.0961453,169.89,169.83,22.2100453]
[1730397944805,22.2100453,169.91,169.85,22.2100453]
[1730397944990,22.2100453,169.9,169.85,23.776884]
[1730397945191,22.2100453,169.9,169.84,46.1124193]
[1730397945407,22.2100453,169.9,169.85,22.2100453]
[1730397945600,22.2100453,169.9,169.84,46.1124193]
[1730397945805,5.8861,169.89,169.84,46.1124193]
[1730397946012,5.8861,169.89,169.85,22.2100453]
[1730397946304,5.8861,169.89,169.84,46.1124193]
[1730397947102,22.2100453,169.88,169.83,23.776884]
[1730397947297,22.2100453,169.87,169.81,22.2100453]
[1730397947503,22.2100453,169.86,169.81,22.2100453]
[1730397948205,5.8875,169.85,169.81,22.2100453]
[1730397949014,5.8875,169.85,169.8,45.9869293]
[1730397949688,5.8875,169.85,169.81,22.2100453]
[1730397949904,5.8875,169.85,169.82,22.2100453]
[1730397950208,5.8875,169.85,169.81,22.2100453]
[1730397950907,22.2100453,169.87,169.81,22.2100453]
[1730397951098,5.8872,169.86,169.81,22.2100453]
[1730397951505,28.0972453,169.86,169.81,22.2100453]
[1730397954210,22.2100453,169.87,169.81,22.2100453]
[1730397955204,5.8875,169.85,169.81,22.2100453]
[1730397956118,5.8875,169.85,169.8,45.9869293]
[1730397956406,22.2100453,169.81,169.75,14.7267]
[1730397956607,20.6063,169.85,169.75,14.7267]
[1730397956608,13.89011082,169.8,169.75,14.7267]
[1730397956813,0.1,169.84,169.71,20.6227]
[1730397957018,16.1246,169.83,169.71,20.6227]
[1730397957216,20.6099,169.82,169.71,14.7306]
[1730397957388,13.89011082,169.76,169.71,14.01560082]
[1730397957589,13.89011082,169.77,169.71,14.01560082]
[1730397958214,13.89011082,169.77,169.72,23.776884]
[1730397958612,22.2324937,169.77,169.71,46.1348677]
[1730397958900,22.2324937,169.77,169.71,22.2324937]
[1730397959103,5.8906,169.76,169.71,28.1247937]
[1730397959623,28.1230937,169.76,169.7,36.9642937]
[1730397959826,28.1230937,169.76,169.71,0.12549]
[1730397960003,5.8906,169.76,169.71,22.3579837]
[1730397960322,5.8906,169.76,169.71,46.1348677]
[1730397960500,28.1230937,169.76,169.71,23.902374]
[1730397960700,5.8906,169.76,169.71,46.1348677]
[1730397961535,28.1230937,169.76,169.71,23.902374]
[1730397962433,5.8906,169.76,169.71,52.0270677]
[1730397963505,22.2324937,169.74,169.68,28.1255937]
[1730397963714,5.8906,169.76,169.67,28.1261937]
[1730397963715,22.2324937,169.73,169.67,28.1261937]
[1730397963917,22.2324937,169.73,169.67,22.2324937]
[1730397964147,22.2324937,169.72,169.66,42.8610937]
[1730397964420,22.2324937,169.71,169.65,11.9427]
[1730397964605,22.2324937,169.7,169.63,28.1275937]
[1730397964799,22.2324937,169.7,169.64,0.12549]
[1730397965002,22.2324937,169.69,169.64,0.12549]
[1730397965215,22.2324937,169.68,169.64,0.12549]
[1730397965521,22.2324937,169.68,169.63,5.8951]
[1730397965721,28.1259937,169.68,169.63,5.8951]
[1730397966318,22.2324937,169.67,169.62,20.6335]
[1730397966719,22.2324937,169.67,169.63,0.12549]
[1730397966925,5.8935,169.68,169.6,22.2324937]
[1730397966926,22.2324937,169.66,169.6,22.2324937]
[1730397967107,22.2324937,169.66,169.59,42.8702937]
[1730397967303,22.2324937,169.65,169.59,20.6378]
[1730397967508,22.2324937,169.64,169.59,20.6378]
[1730397967723,5.895,169.64,169.6,0.12549]
[1730397967918,22.2324937,169.65,169.54,29.5908]
[1730397967919,22.2324937,169.61,169.54,22.2324937]
[1730397968215,21.949,169.65,169.52,5.8987]
[1730397968216,22.049,169.65,169.52,5.8987]
[1730397968400,22.2324937,169.57,169.52,5.8987]
[1730397968612,22.2324937,169.59,169.53,22.2324937]
[1730397968811,22.2324937,169.58,169.51,22.5081525]
[1730397969006,22.2324937,169.57,169.51,0.2756588]
[1730397969326,22.2324937,169.57,169.51,6.1749588]
[1730397969626,28.1297937,169.57,169.51,6.1749588]
[1730397969805,28.1297937,169.57,169.51,28.4074525]
[1730397970004,22.2324937,169.6,169.54,22.2324937]
[1730397970313,22.2324937,169.6,169.53,22.2324937]
[1730397970515,22.2324937,169.6,169.54,23.776884]
[1730397970719,22.2324937,169.6,169.54,46.0093777]
[1730397970923,22.2324937,169.59,169.54,23.776884]
[1730397971123,22.2324937,169.58,169.53,23.776884]
[1730397971420,22.2324937,169.57,169.52,23.776884]
[1730397971629,22.2324937,169.58,169.52,23.776884]
[1730397971927,5.8968,169.59,169.51,0.2756588]
[1730397971928,22.2324937,169.56,169.51,0.2756588]
[1730397972110,22.2324937,169.53,169.51,0.2756588]
[1730397972928,22.2324937,169.55,169.51,0.2756588]
[1730397973126,5.8983,169.54,169.51,0.2756588]
[1730397973705,22.2324937,169.52,169.51,0.2756588]
[1730397974625,22.2324937,169.52,169.5,2.40343202]
[1730397974819,22.2324937,169.51,169.5,2.40343202]
[1730397975103,28.1317937,169.51,169.5,2.40343202]
[1730397975923,6.1307,169.5,169.38,28.1361937]
[1730397976121,22.2324937,169.45,169.39,22.2324937]
[1730397976328,22.2324937,169.47,169.41,22.2324937]
[1730397976632,6.1307,169.5,169.39,0.12549]
[1730397976633,22.2324937,169.46,169.4,22.2324937]
[1730397977028,5.9014,169.45,169.4,22.2324937]
[1730397977334,28.1338937,169.45,169.39,22.2324937]
[1730397977530,22.2324937,169.44,169.38,36.9921937]
[1730397978038,28.1338937,169.45,169.39,22.2324937]
[1730397978210,5.9014,169.45,169.38,14.7597]
[1730397978410,22.2324937,169.44,169.38,36.9921937]
[1730397978737,28.1338937,169.45,169.39,22.2324937]
[1730397979048,5.9007,169.47,169.41,28.1352937]
[1730397979210,28.1331937,169.47,169.41,28.1352937]
[1730397979518,22.2324937,169.46,169.4,22.2324937]
[1730397980329,22.2324937,169.45,169.39,28.1358937]
[1730397980530,22.2324937,169.44,169.38,36.9921937]
[1730397980727,22.2324937,169.45,169.39,22.2324937]
[1730397980920,22.2324937,169.44,169.38,42.8959937]
[1730397981120,28.1334937,169.46,169.4,22.2324937]
[1730397981319,14.7518,169.47,169.38,20.6635]
[1730397981320,28.1331937,169.47,169.41,22.2324937]
[1730397981633,22.2324937,169.45,169.39,22.2324937]
[1730397982338,5.9007,169.47,169.38,42.8959937]
[1730397982339,22.2324937,169.44,169.38,42.8959937]
[1730397982839,22.2324937,169.43,169.38,42.8959937]
[1730397983334,5.9022,169.43,169.38,42.8959937]
[1730397983920,28.1346937,169.43,169.38,42.8959937]
[1730397984138,28.1346937,169.43,169.38,20.6635]
[1730397984322,22.2324937,169.42,169.36,28.1369937]
[1730397984816,22.2324937,169.42,169.37,22.2324937]
[1730397985017,28.1346937,169.43,169.37,22.2324937]
[1730397985218,5.9022,169.43,169.38,22.2324937]
[1730397985416,22.2324937,169.41,169.36,20.6659]
[1730397985613,22.2324937,169.42,169.36,42.8983937]
[1730397985844,22.2324937,169.41,169.36,20.6659]
[1730397986338,22.2324937,169.39,169.34,6.5081892]
[1730397986536,22.2324937,169.39,169.34,6.0081892]
[1730397986737,22.2324937,169.37,169.34,0.1030892]
[1730397988344,28.1368937,169.37,169.34,0.1030892]
[1730397988518,19.86468072,169.37,169.34,0.1030892]
[1730397989029,16.3979,169.45,169.34,19.96836992]
[1730397989030,13.96028072,169.39,169.34,19.96836992]
[1730397989339,13.96028072,169.38,169.34,20.7713892]
[1730397989536,13.96028072,169.39,169.34,20.7713892]
[1730397990132,13.96028072,169.4,169.34,34.73166992]
[1730397993328,22.33134808,169.45,169.4,22.33134808]
[1730397993543,22.33134808,169.45,169.36,40.182484]
[1730397993544,22.33134808,169.41,169.36,22.33134808]
[1730397994058,22.33134808,169.4,169.35,20.667]
[1730397994426,22.33134808,169.38,169.34,0.1030892]
[1730397994633,22.33134808,169.39,169.34,0.1030892]
[1730397994827,5.9034,169.4,169.35,22.33134808]
[1730397995121,22.33134808,169.41,169.35,22.33134808]
[1730397995347,28.23414808,169.42,169.36,22.33134808]
[1730397995645,28.23414808,169.42,169.37,22.33134808]
[1730397995854,28.23414808,169.42,169.36,22.33134808]
[1730397996437,22.33134808,169.42,169.37,22.33134808]
[1730397996738,28.23314808,169.44,169.38,46.10823208]
[1730397996943,22.33134808,169.44,169.38,46.10823208]
[1730397997151,28.23274808,169.45,169.39,22.33134808]
[1730397997366,22.33134808,169.44,169.38,46.10823208]
[1730397997653,22.33134808,169.43,169.38,23.776884]
[1730397998452,22.33134808,169.43,169.38,29.680384]
[1730397998658,28.23324808,169.44,169.38,52.01173208]
[1730397998838,28.23324808,169.44,169.38,66.77143208]
[1730397999231,22.33134808,169.43,169.38,44.440084]
[1730397999562,5.9019,169.44,169.38,44.440084]
[1730397999563,22.33134808,169.42,169.38,20.6632]
[1730397999739,22.33134808,169.41,169.38,20.6632]
[1730397999934,22.33134808,169.41,169.36,22.33134808]
[1730398000141,22.33134808,169.41,169.36,28.23554808]
[1730398000470,28.23484808,169.39,169.34,0.1030892]
[1730398000751,22.33134808,169.37,169.34,0.1030892]
[1730398002445,28.23584808,169.37,169.34,0.1030892]
[1730398002953,22.33134808,169.36,169.34,0.1030892]
[1730398003559,5.9049,169.35,169.34,0.1030892]
[1730398004865,28.23624808,169.35,169.34,0.1030892]
[1730398005941,28.23624808,169.35,169.3,0.5]
[1730398005942,15.1109,169.34,169.3,0.5]
[1730398006151,49.38004808,169.35,169.17,0.6030892]
[1730398006152,21.3924,169.28,169.17,0.6030892]
[1730398006438,0.1,169.24,169.17,0.6030892]
[1730398006643,22.33134808,169.2,169.17,0.6030892]
[1730398006953,22.33134808,169.19,169.17,0.6030892]
[1730398007142,22.33134808,169.2,169.17,0.6030892]
[1730398007665,22.33134808,169.18,169.17,0.6030892]
[1730398009640,28.24214808,169.18,169.17,0.6030892]
[1730398011373,22.33134808,169.19,169.17,0.6030892]
[1730398011673,6.08750157,169.23,169.17,0.6030892]
[1730398011674,22.33134808,169.2,169.17,0.6030892]
[1730398012167,0.1,169.26,169.17,0.6030892]
[1730398012168,22.33134808,169.23,169.18,20.6879]
[1730398012364,22.33134808,169.22,169.18,14.7771]
[1730398012580,22.33134808,169.22,169.18,20.6879]
[1730398012873,22.33134808,169.22,169.18,14.7771]
[1730398013174,22.33134808,169.21,169.17,0.6030892]
[1730398013376,22.33134808,169.22,169.17,0.6030892]
[1730398013570,22.33134808,169.22,169.17,15.3810892]
[1730398013772,22.33134808,169.21,169.17,0.6030892]
[1730398014572,22.33134808,169.24,169.17,43.62353728]
[1730398014986,22.33134808,169.23,169.17,43.62353728]
[1730398015274,22.33134808,169.22,169.17,15.3810892]
[1730398015973,28.24044808,169.23,169.17,43.62363728]
[1730398016181,22.33134808,169.23,169.17,43.62363728]
[1730398016358,22.33134808,169.24,169.18,22.33134808]
[1730398017472,22.33134808,169.24,169.18,28.24204808]
[1730398017679,22.33134808,169.23,169.17,43.62353728]
[1730398017982,22.33134808,169.31,169.22,22.33134808]
[1730398018177,22.33134808,169.31,169.25,22.33134808]
[1730398018484,22.33134808,169.3,169.24,22.33134808]
[1730398018657,22.33134808,169.29,169.23,22.33134808]
[1730398018859,22.33134808,169.28,169.22,22.33134808]
[1730398019056,28.23884808,169.28,169.22,22.33134808]
[1730398019454,22.33134808,169.27,169.21,37.10524808]
[1730398019663,22.33134808,169.26,169.21,14.7739]
[1730398019867,22.33134808,169.24,169.18,37.10844808]
[1730398020171,22.33134808,169.27,169.21,22.33134808]
[1730398020482,5.9075,169.28,169.18,20.6879]
[1730398020483,22.33134808,169.26,169.2,22.33134808]
[1730398020653,22.33134808,169.25,169.19,22.33134808]
[1730398021074,22.33134808,169.26,169.2,22.33134808]
[1730398021688,22.33134808,169.28,169.22,22.33134808]
[1730398022161,22.33134808,169.29,169.22,22.33134808]
[1730398022367,22.33134808,169.27,169.21,22.33134808]
[1730398022763,28.23914808,169.27,169.21,28.24084808]
[1730398022963,28.23914808,169.27,169.21,43.01534808]
[1730398023171,22.33134808,169.3,169.24,22.33134808]
[1730398023471,22.33134808,169.33,169.27,22.33134808]
[1730398023661,22.33134808,169.33,169.28,22.33134808]
[1730398023863,22.33134808,169.33,169.26,22.33134808]
[1730398024160,22.33134808,169.33,169.24,23.776884]
[1730398024161,22.33134808,169.27,169.23,6.093]
[1730398024385,22.33134808,169.28,169.23,6.093]
[1730398025067,28.23894808,169.28,169.23,6.093]
[1730398025264,28.23894808,169.28,169.23,12.002]
[1730398025963,28.23894808,169.28,169.22,21.0463]
[1730398026286,28.23894808,169.28,169.22,58.15124808]
[1730398026680,28.23894808,169.28,169.23,22.33134808]
[1730398026866,5.9076,169.28,169.23,22.33134808]
[1730398027064,22.33134808,169.29,169.23,22.33134808]
[1730398027279,22.33134808,169.28,169.22,37.10494808]
[1730398027581,22.33134808,169.25,169.19,28.48664808]
[1730398027786,22.33134808,169.26,169.2,22.33134808]
[1730398027996,22.33134808,169.25,169.19,28.48664808]
[1730398028487,13.97888399,169.25,169.2,13.97888399]
[1730398028711,13.97888399,169.26,169.2,13.97888399]
[1730398029183,19.88728399,169.25,169.2,13.97888399]
[1730398029571,5.9084,169.25,169.2,13.97888399]
[1730398029773,13.97888399,169.26,169.2,5.9098]
[1730398029982,13.97888399,169.27,169.21,13.97888399]
[1730398031095,13.97888399,169.24,169.18,30.60458399]
[1730398031565,13.97888399,169.23,169.18,13.97888399]
[1730398031766,13.97888399,169.22,169.17,0.6030892]
[1730398031975,13.97888399,169.21,169.17,0.6030892]
[1730398032177,13.97888399,169.24,169.18,13.97888399]
[1730398032369,19.88688399,169.26,169.2,13.97888399]
[1730398032575,13.97888399,169.25,169.19,13.97888399]
[1730398032888,13.97888399,169.23,169.18,13.97888399]
[1730398033184,5.9092,169.23,169.18,19.88958399]
[1730398033391,13.97888399,169.21,169.17,0.6030892]
[1730398033778,19.88808399,169.23,169.17,14.58197319]
[1730398033978,5.9092,169.23,169.18,13.97888399]
[1730398034567,13.97888399,169.25,169.19,13.97888399]
[1730398034768,13.97888399,169.24,169.18,13.97888399]
[1730398035071,5.9091,169.23,169.18,13.97888399]
[1730398035263,19.88798399,169.23,169.18,13.97888399]
[1730398035467,5.9091,169.23,169.18,19.88948399]
[1730398035692,19.88758399,169.25,169.19,13.97888399]
[1730398036970,19.88758399,169.25,169.2,23.776884]
[1730398037484,19.88738399,169.25,169.2,23.776884]
[1730398037791,13.97888399,169.24,169.18,13.97888399]
[1730398037982,13.97888399,169.24,169.19,23.776884]
[1730398038594,19.88738399,169.25,169.19,37.75576799]
[1730398038801,19.88738399,169.25,169.17,14.58197319]
[1730398038802,13.97888399,169.23,169.17,14.58197319]
[1730398038979,5.9093,169.23,169.18,13.97888399]
[1730398039181,5.9093,169.23,169.17,6.5141892]
[1730398039182,5.907,169.29,169.17,50.8481892]
[1730398039384,13.97888399,169.29,169.23,13.97888399]
[1730398039595,19.88568399,169.3,169.24,13.97888399]
[1730398039892,13.97888399,169.28,169.22,13.97888399]
[1730398040091,13.97888399,169.25,169.19,13.97888399]
[1730398040298,13.97888399,169.23,169.17,35.27107319]
[1730398041078,19.88798399,169.23,169.17,35.27107319]
[1730398041684,5.9091,169.23,169.18,13.97888399]
[1730398042401,13.97888399,169.23,169.17,35.27107319]
[1730398043077,13.97888399,169.24,169.18,13.97888399]
[1730398043599,5.9091,169.23,169.18,13.97888399]
[1730398043924,5.9091,169.23,169.19,13.97888399]
[1730398044397,5.9075,169.28,169.22,13.97888399]
[1730398044694,13.97888399,169.31,169.25,13.97888399]
[1730398044918,13.97888399,169.31,169.26,13.97888399]
[1730398045389,13.97888399,169.3,169.24,13.97888399]
[1730398045594,5.907,169.29,169.24,19.88758399]
[1730398045896,13.97888399,169.32,169.26,13.97888399]
[1730398046087,19.88448399,169.33,169.27,13.97888399]
[1730398046485,13.97888399,169.32,169.26,13.97888399]
[1730398047005,5.9063,169.31,169.26,13.97888399]
[1730398047179,13.97888399,169.3,169.24,28.75078399]
[1730398047697,19.88518399,169.31,169.25,13.97888399]
[1730398047889,13.97888399,169.3,169.24,28.75078399]
[1730398048585,5.907,169.29,169.25,13.97888399]
[1730398048896,5.9066,169.3,169.25,13.97888399]
[1730398049580,19.88518399,169.31,169.25,13.97888399]
[1730398050487,19.88388399,169.35,169.29,13.97888399]
[1730398050796,30.8886,169.38,169.3,13.97888399]
[1730398050797,19.88348399,169.36,169.3,13.97888399]
[1730398051502,13.97888399,169.34,169.28,14.10437399]
[1730398051694,13.97888399,169.34,169.29,37.75576799]
[1730398051897,13.97888399,169.36,169.3,13.97888399]
[1730398052093,13.97888399,169.36,169.31,23.776884]
[1730398052296,19.88328399,169.37,169.31,37.75576799]
[1730398052607,13.97888399,169.35,169.3,14.7658]
[1730398053083,13.97888399,169.35,169.25,0.1]
[1730398053084,13.97888399,169.31,169.25,19.88728399]
[1730398053283,13.97888399,169.3,169.25,19.88728399]
[1730398053483,13.97888399,169.3,169.2,13.97888399]
[1730398053484,13.97888399,169.32,169.26,13.97888399]
[1730398053986,22.6622,169.35,169.21,29.5481]
[1730398054194,13.97888399,169.28,169.22,22.1005]
[1730398054404,13.97888399,169.28,169.23,13.97888399]
[1730398054719,22.6622,169.35,169.26,13.97888399]
[1730398054720,13.97888399,169.31,169.26,13.97888399]
[1730398054891,13.97888399,169.32,169.26,13.97888399]
[1730398055505,13.97888399,169.31,169.25,13.97888399]
[1730398055915,13.97888399,169.29,169.24,23.776884]
[1730398056209,13.97888399,169.28,169.23,34.66068399]
[1730398056811,19.88618399,169.28,169.23,34.66068399]
[1730398057196,19.88618399,169.28,169.23,20.6818]
[1730398057782,19.88618399,169.28,169.23,14.7727]
[1730398058489,13.97888399,169.25,169.2,20.6853]
[1730398058687,13.97888399,169.25,169.19,20.29418399]
[1730398059208,13.97888399,169.25,169.19,26.20458399]
[1730398059914,19.88758399,169.24,169.19,5.9104]
[1730398060086,5.9087,169.24,169.19,19.88928399]
[1730398060415,5.9087,169.24,169.19,5.9104]
[1730398060416,13.97888399,169.23,169.19,5.9104]
[1730398060584,13.97888399,169.21,169.17,15.3809892]
[1730398060983,13.97888399,169.18,169.17,0.6030892]
[1730398061185,13.97888399,169.2,169.17,0.6030892]
[1730398061636,13.97888399,169.18,169.17,0.6030892]
[1730398061907,19.88968399,169.18,169.17,0.6030892]
[1730398062109,5.9108,169.18,169.17,0.6030892]
[1730398062702,19.88968399,169.18,169.17,0.6030892]
[1730398065707,19.98968399,169.18,169.17,0.6030892]
[1730398066027,19.88968399,169.18,169.17,0.6030892]
[1730398066201,19.98968399,169.18,169.17,0.6030892]
[1730398066402,19.98968399,169.18,169.14,15.72543618]
[1730398066403,0.1,169.16,169.14,15.72543618]
[1730398066604,13.97888399,169.15,169.14,15.72543618]
[1730398067407,13.97888399,169.16,169.14,15.72543618]
[1730398067821,26.33778399,169.15,169.14,15.72543618]
[1730398068015,0.1,169.12,169.09,1.0]
[1730398068215,13.97888399,169.1,169.09,1.0]
[1730398069796,19.89248399,169.1,169.09,1.0]
[1730398070021,36.0681,169.14,169.09,1.0]
[1730398070022,13.97888399,169.12,169.09,1.0]
[1730398070220,35.95918399,169.14,169.09,1.0]
[1730398070440,26.23778399,169.15,169.09,14.97888399]
[1730398070940,13.97888399,169.14,169.09,1.0]
[1730398071322,15.3941,169.18,169.1,37.75576799]
[1730398071323,13.97888399,169.16,169.1,37.75576799]
[1730398071522,13.97888399,169.16,169.11,13.97888399]
[1730398071728,5.9114,169.17,169.12,13.97888399]
[1730398072439,19.89028399,169.17,169.11,13.97888399]
[1730398072918,0.1,169.21,169.15,13.97888399]
[1730398072919,13.97888399,169.21,169.15,13.97888399]
[1730398073114,5.9094,169.22,169.12,23.776884]
[1730398073115,19.88828399,169.22,169.16,13.97888399]
[1730398073313,5.9094,169.22,169.17,13.97888399]
[1730398073522,5.9094,169.22,169.12,23.776884]
[1730398073523,13.97888399,169.21,169.16,13.97888399]
[1730398073837,21.4923,169.24,169.19,13.97888399]
[1730398074044,21.4923,169.24,169.13,0.12549]
[1730398074045,5.9091,169.24,169.2,13.97888399]
[1730398074332,19.88798399,169.24,169.18,13.97888399]
[1730398075253,5.9091,169.24,169.19,13.97888399]
[1730398075550,5.9091,169.24,169.21,13.97888399]
[1730398075835,5.9091,169.24,169.2,13.97888399]